Cogmind - Beta 13 @@@ ROGUE MODE // 2024.04.14 @ 02:17:41 Player: chexo4 Result: Self-destructed Performance ------------- Evolutions (1) 500 Regions Visited (3) 600 Robots Destroyed (22) 110 Value Destroyed (385) 385 Prototype IDs (0) 0 Alien Tech Used (0) 0 Bonus (0) 0 TOTAL SCORE: 1595 Bonus ------- None Cogmind --------- Core Integrity 384/400 Matter 173/300 Energy 125/125 System Corruption 0% Temperature Cool (0) Movement Rolling (86) Location -9/Materials Parts ------- > --- POWER (1) -------- Light Ion Engine > --- PROPULSION (4) --- Wheel Wheel Compact Wheel > --- UTILITY (2) ------ Medium Storage Unit > --- WEAPON (2) ------- Assault Rifle Assault Rifle > --- INVENTORY (10) --- Seismic Detector Assault Rifle Mining Laser Peak State ------------ > --- POWER ------------ Light Ion Engine > --- PROPULSION ------- Compact Wheel Compact Wheel > --- UTILITY ---------- Medium Storage Unit Seismic Detector > --- WEAPON ----------- Heavy EM Pulse Gun Light Cannon > --- INVENTORY -------- Light Ion Engine Wheel Wheel Seismic Detector Heavy EM Pulse Gun Assault Rifle Assault Rifle Assault Rifle Mining Laser [Rating: 9] Favorites ----------- Power Light Ion Engine Engine Light Ion Engine Propulsion Compact Wheel Wheel Compact Wheel Utility Seismic Detector Device Seismic Detector Storage Medium Storage Unit Weapon Assault Rifle Energy Gun Heavy EM Pulse Gun Ballistic Gun Assault Rifle Ballistic Cannon Light Cannon Special Weapon Mining Laser Build | -11 -10 -10 -9 ------- Run | Yrd Mat Min Mat Slots Evolved 2 | . . . 2 Power . | . . . . Propulsion 2 | . . . 2 Utility . | . . . . Weapon . | . . . . Parts Attached 21 | 8 8 1 4 Power 2 | 1 . . 1 Engine 2 | 1 . . 1 Core . | . . . . Reactor . | . . . . Propulsion 7 | 3 2 . 2 Treads . | . . . . Leg . | . . . . Wheel 7 | 3 2 . 2 Hover . | . . . . Flight . | . . . . Utility 3 | 2 1 . . Device 1 | 1 . . . Storage 2 | 1 1 . . Processor . | . . . . Hackware . | . . . . Protection . | . . . . Artifact . | . . . . Weapon 9 | 2 5 1 1 Energy Gun 2 | . 2 . . Energy Cannon . | . . . . Ballistic Gun 4 | 2 . 1 1 Ballistic Cannon 2 | . 2 . . Launcher . | . . . . Special Weapon 1 | . 1 . . Impact Weapon . | . . . . Slashing Weapon . | . . . . Piercing Weapon . | . . . . Special Melee Weapon . | . . . . Unidentified Prototypes . | . . . . Parts Lost 7 | . 2 3 2 Power 1 | . . 1 . Propulsion 2 | . 1 . 1 Utility 1 | . . 1 . Weapon 3 | . 1 1 1 Highest Loss Streak 3 | . 2 3 2 To Critical Strikes . | . . . . Average Slot Usage (%) 96 | . 99 92 84 Engine 13 | . 14 11 11 Wheel 29 | . 27 28 41 Device 11 | . 14 11 . Storage 13 | . 14 14 11 Energy Gun 7 | . 8 11 . Ballistic Gun 9 | . 10 1 13 Ballistic Cannon 8 | . 7 14 8 Naked Turns . | . . . . Heaviest Build 20 | 13 20 20 18 Greatest Support 52 | 32 32 32 52 Greatest Overweight (x) 1 | . 1 . . Average Overweight (x) . | . . . . Largest Inventory Capacity 10 | 8 10 10 10 Average Capacity 9 | 7 9 10 10 Most Carried 9 | 7 9 8 6 Average Carried 6 | 3 8 7 3 Final Capacity 10 | 8 10 10 10 Final Carried 8 | 6 8 7 3 Class Distribution -------------------- 86% | Mutant 13% | Scavenger-Mutant Dominant Class ---------------- Mutant | -10/Materials Mutant | -10/Mines Scavenger-Mutant | -9/Materials Resources | -11 -10 -10 -9 ----------- Run | Yrd Mat Min Mat Matter Collected 633 | 306 294 33 . Remotely . | . . . . Salvage Created 639 | 187 365 61 26 Parts 44 | 18 20 1 5 Haulers Intercepted . | . . . . Recyclers Shooed 1 | . 1 . . Parts Field Recycled . | . . . . Retrieved Matter . | . . . . Parts Self-Destructed . | . . . . Prevented . | . . . . Kills | -11 -10 -10 -9 ------- Run | Yrd Mat Min Mat Combat Hostiles Destroyed 11 | . 6 2 3 Guns 8 | . 4 2 2 Cannons 3 | . 2 . 1 Classes Destroyed 5 | 2 3 . . Tunneler 6 | 6 . . . Recycler 3 | 1 2 . . Watcher 2 | . 2 . . Swarmer 5 | . 2 . 3 Grunt 6 | . 4 2 . Best Kill Streak 3 | 2 3 1 3 Combat Bots Only 3 | . 2 1 3 Max Kills in Single Turn 1 | 1 1 1 1 Gunslinging . | . . . . Exploded . | . . . . Melee . | . . . . Uniques/NPCs Destroyed . | . . . . Combat | -11 -10 -10 -9 -------- Run | Yrd Mat Min Mat Hostile Shots Fired 76 | . 41 11 24 Missed 26 | . 12 3 11 Damage Taken 597 | . 357 131 109 Core 84 | . 54 14 16 Absorbed by Shields . | . . . . Core Remaining (%) 86 | 100 . 72 . Volleys Fired 74 | 27 30 8 9 Largest 2 | 2 2 2 2 Hottest 100 | 40 100 80 55 Shots Fired 141 | 54 57 14 16 Gun 103 | 54 33 6 10 Cannon 37 | . 23 8 6 Launcher . | . . . . Special 1 | . 1 . . Kinetic 116 | 54 35 11 16 Thermal 1 | . 1 . . Explosive . | . . . . Electromagnetic 24 | . 21 3 . Robot Hit Streak 10 | 8 10 5 4 Robot Miss Streak 6 | 6 3 1 2 Penetration Max . | . . . . Secondary Targets . | . . . . Shots Hit Robots 84 | 32 33 10 9 Core Hits 28 | 8 14 3 3 Critical Kills . | . . . . Critical Parts Destroyed . | . . . . Critical Strikes . | . . . . Melee Attacks . | . . . . Impact . | . . . . Slashing . | . . . . Piercing . | . . . . Sneak Attacks . | . . . . Combat Hostiles . | . . . . Follow-up Attacks . | . . . . Damage Inflicted 1298 | 401 619 130 148 Guns 875 | 401 345 58 71 Cannons 379 | . 230 72 77 Explosions 44 | . 44 . . Melee . | . . . . Ramming . | . . . . Kinetic 1014 | 401 366 99 148 Thermal 44 | . 44 . . Explosive . | . . . . Electromagnetic 240 | . 209 31 . Impact . | . . . . Slashing . | . . . . Piercing . | . . . . Highest Corruption . | . . . . Average Corruption . | . . . . Corruption Purged . | . . . . Corruption Blocked . | . . . . Overload Shots . | . . . . Overflow Damage 6 | . 4 . 2 Projectiles 6 | . 4 . 2 Explosions . | . . . . Melee . | . . . . Knockbacks 9 | . 7 1 1 Impact . | . . . . Kinetic 9 | . 7 1 1 Secondary . | . . . . Self-Inflicted Damage . | . . . . Shots . | . . . . Rammed . | . . . . Targets Rammed . | . . . . Kicked . | . . . . Crushed . | . . . . Highest Temperature 194 | . 194 27 . Average Temperature 70 | . 79 9 . Received Heat Transfer 273 | . 189 72 12 Siege Activations . | . . . . Robots Corrupted . | . . . . Combat Hostiles . | . . . . Parts Fried . | . . . . Impact Corruptions . | . . . . Robots Melted . | . . . . Combat Hostiles . | . . . . Parts Melted . | . . . . Heat Transferred 50 | . 50 . . Parts Sabotaged . | . . . . Parts Stolen . | . . . . Parts Stripped . | . . . . Power Chain Reactions 1 | . 1 . . Alert | -11 -10 -10 -9 ------- Run | Yrd Mat Min Mat Peak Influence 169 | 35 169 51 74 Initial 31 | . 22 31 19 Average 53 | 15 79 33 39 Maximum Alert Level . | . . . . Low Security (%) 100 | 100 100 100 100 Level 1 . | . . . . Level 2 . | . . . . Level 3 . | . . . . Level 4 . | . . . . Level 5 . | . . . . High Security . | . . . . Max Security . | . . . . Squads Dispatched 1 | . . . 1 Investigation 1 | . . . 1 Extermination . | . . . . Reinforcement . | . . . . Assault . | . . . . Garrison . | . . . . Intercept . | . . . . Searches Triggered . | . . . . Construction Impeded . | . . . . Haulers Reinforced . | . . . . Active Scanning Responses . | . . . . Cargo Convoy Interrupts . | . . . . Stealth | -11 -10 -10 -9 --------- Run | Yrd Mat Min Mat Distress Signals 1 | . 1 . . Communications Jammed . | . . . . Distress Signals . | . . . . Times Spotted 21 | . 12 1 8 Peak Tracking Total 4 | . 3 1 4 Tactical Retreats 2 | . 2 . . Traps | -11 -10 -10 -9 ------- Run | Yrd Mat Min Mat Traps Triggered . | . . . . Indirectly . | . . . . Trap Hack Attempts . | . . . . Triggered . | . . . . Disarmed . | . . . . Reprogrammed . | . . . . Reused . | . . . . Traps Extracted . | . . . . Installed . | . . . . Triggered . | . . . . Machines | -11 -10 -10 -9 ---------- Run | Yrd Mat Min Mat Machines Disabled . | . . . . Max in Single Turn . | . . . . Machines Repaired . | . . . . Machines Dismantled . | . . . . Machines Sabotaged . | . . . . Overloaded Fab Kills . | . . . . Hacking | -11 -10 -10 -9 --------- Run | Yrd Mat Min Mat Machines Accessed 7 | . 6 . 1 Terminals 6 | . 5 . 1 Fabricators . | . . . . Repair Stations . | . . . . Recycling Units 1 | . 1 . . Scanalyzers . | . . . . Garrison Access . | . . . . Total Hacks 18 | . 14 . 4 Successful 11 | . 9 . 2 Failed 7 | . 5 . 2 Catastrophic 1 | . 1 . . Database Lockouts . | . . . . Manual 14 | . 12 . 2 Terminals 17 | . 13 . 4 Fabricators . | . . . . Repair Stations . | . . . . Recycling Units 1 | . 1 . . Scanalyzers . | . . . . Garrison Access . | . . . . Terminal Hacks 2 | . 2 . . Robot Analysis 1 | . 1 . . Zone Layout 1 | . 1 . . Fabricator Hacks . | . . . . Repair Station Hacks . | . . . . Recycling Unit Hacks . | . . . . Scanalyzer . | . . . . Garrison Access Hacks . | . . . . Unauthorized Hacks 9 | . 7 . 2 Terminals 8 | . 6 . 2 Track 5 | . 4 . 1 Assimilate 1 | . 1 . . Operators 2 | . 1 . 1 Fabricators . | . . . . Repair Stations . | . . . . Recycling Units 1 | . 1 . . Reject 1 | . 1 . . Scanalyzers . | . . . . Garrison Access . | . . . . Data Cores Recovered . | . . . . Used . | . . . . Hacking Detections 4 | . 3 . 1 Full Trace Events 2 | . 1 . 1 Feedback Events . | . . . . Feedback Blocked . | . . . . Robot Schematics Acquired . | . . . . Robots Built . | . . . . Authchips . | . . . . Time . | . . . . Total Robot Build Rating . | . . . . Part Schematics Acquired . | . . . . Parts Built . | . . . . Authchips . | . . . . Time . | . . . . Total Part Build Rating . | . . . . Parts Repaired . | . . . . Time . | . . . . Parts Recycled . | . . . . Recycled Matter . | . . . . Retrieved Matter . | . . . . Retrieved Components . | . . . . Parts Scanalyzed . | . . . . Part Schematics Acquired . | . . . . Parts Damaged . | . . . . Bothacking | -11 -10 -10 -9 ------------ Run | Yrd Mat Min Mat Used RIF Installer . | . . . . Robots Hacked . | . . . . Non-combat . | . . . . Combat . | . . . . Robot Hacks Applied . | . . . . Relay Couplers Released . | . . . . Fabnet Peak Effective % . | . . . . Robots Rewired . | . . . . Allies Hacked . | . . . . Hacks Repelled . | . . . . Allies | -11 -10 -10 -9 -------- Run | Yrd Mat Min Mat Total Allies 1 | . 1 . . Largest Group 1 | . 1 1 1 Highest-Rated Group 10 | . 10 10 10 Highest-Rated Ally 10 | . 10 10 10 Total Orders 1 | . . 1 . FOLLOW 1 | . . 1 . Ally Attacks . | . . . . Total Damage . | . . . . Kills . | . . . . Allies Corrupted . | . . . . Allies Melted . | . . . . Intel | -11 -10 -10 -9 ------- Run | Yrd Mat Min Mat Robot Analysis Total 1 | . 1 . . Derelict Logs Recovered . | . . . . Drone Launches . | . . . . Drone Recoveries . | . . . . Exploration | -11 -10 -10 -9 ------------- Run | Yrd Mat Min Mat Turns Passed 995 | 254 525 105 111 Spaces Moved 608 | 162 274 81 91 Core 18 | 18 . . . Treads . | . . . . Legs . | . . . . Wheels 590 | 144 274 81 91 Hover . | . . . . Flight . | . . . . Fastest Speed 50 | 50 90 100 86 Average Speed 96 | 94 99 100 89 Slowest Speed 115 | 100 115 100 90 Overloaded Moves . | . . . . Propulsion Burnouts . | . . . . Robots Hopped . | . . . . Cave-ins Triggered . | . . . . Exploration Rate (%) 19 | 5 43 19 9 Regions Visited 3 Branch Regions 1 Pre-discovered Areas . | . . . . Known Exits Taken . | . . . . Unknown Exits Taken 3 | 1 1 1 . Scrap Searched . | . . . . Spaces Dug 1 | . 1 . . Terrain Destroyed 3 | . 3 . . Melee . | . . . . Projectile 1 | . 1 . . AOE 2 | . 2 . . Terrain Rammed . | . . . . Walls Destroyed . | . . . . Machines Disabled . | . . . . Actions | -11 -10 -10 -9 --------- Run | Yrd Mat Min Mat Total 866 | 207 464 91 104 Wait 150 | . 148 2 . Move 605 | 161 273 80 91 Hop . | . . . . Pick Up 15 | 11 4 . . Fast Attach 2 | 2 . . . Attach 12 | 5 2 1 4 Detach . | . . . . Swap 7 | 1 6 . . Drop 1 | . 1 . . Fire 74 | 27 30 8 9 Melee . | . . . . Ram . | . . . . Kick . | . . . . Crush . | . . . . Escape Stasis . | . . . . Rewire . | . . . . Trap . | . . . . Miscellaneous . | . . . . Route ------- -11/Scrapyard -10/Materials -10/Mines -9/Materials History --------- Turn | Location | Event 7 | -11/Scrapyard | Discovered new exit (range 16) 255 | -11/Scrapyard | Entered Materials 305 | -10/Materials | Build established: Mutant 708 | -10/Materials | Discovered new exit (range 7) 780 | -10/Materials | Entered Mines 780 | -10/Mines | Accompanied by 1 ally 850 | -10/Mines | Discovered new exit (range 8) 885 | -10/Mines | Entered Materials 885 | -9/Materials | Accompanied by 1 ally 885 | -9/Materials | Evolved 2 slots: Propulsion x2 897 | -9/Materials | Lost 3 parts (1p1u1w) 996 | -9/Materials | Self-destructed Last Messages --------------- Connecting with Terminal... Current location identified: Materials >>Trojan(Operators) Trojan loaded successfully. Testing... Operator tracking enabled and active. >>Trojan(Track) Trojan loaded successfully. Testing... Tracking enabled and active. ALERT: Suspicious activity at Terminal M011. Dispatching Investigation squad. Technician 1a reveals location of Shock Trap. S-10 Pest destroyed. S-10 Pest knocked back. S-10 Pest destroyed. Destroyed Flight Unit. Com. Wheel destroyed. Lgt. Cannon destroyed. S-10 Pest destroyed. Map ----- +----------------------------------------------------+ | ?????????????????????????????????????????????????? | | ?????????????????????????????????????????????????? | | ?????????????????????????????????????????????????? | | ?????????????????????????????????????????????????? | | ?????????????????????????????????????????????????? | | ?????????????????????????????????????????????????? | | ?????????????????????????????????????????????????? | | ?????????????????????????????????????????????????? | | ????????o????????????????????????????????????????? | | ?????????????????????"##?????????????????????????? | | ??????????????????? ?????????????????????????? | | ????????????????? ?????????????????????????? | | ????????????????? ?????????????????????????? | | ???????????????? ? !!! ?????????????????????????? | | ?????????????? !!! ?????????????????????????? | | ?????????????? !!! ?????????????????????????? | | ??????????????? +????????????????????????? | | ???????????????? ^ #????????????????????????? | | ?????????????????" #????????????????????????? | | ?????????????????? #????????????????????????? | | ??????????????????? #????????????????????????? | | ???????????????????? #????????????????????????? | | ????????????????????? %#????????????????????????? | | ????????????????#######+###??????????????????????? | | ????????????????# %==%=#??????????????????????? | | ????????????????# [%[@#??????????????????????? | | ????????????????# """"""" #??????????????????????? | | ????????????????# """"""" #??????????????????????? | | ????????????????# """"""" #??????????????????????? | | ????????????????# """"""" #??????????????????????? | | ????????????????# """""""g#??????????????????????? | | ????????????????# g #??????????????????????? | | ???##################/#####??????????????????????? | | ???# =% #???????????????????????? | | ???# * #???????????????????????? | | ???# #???????????????????????? | | ?######+######+####### #???????????????????????? | | ?# # #?# #???????????????????????? | | ?# + """#?# #???????????????????????? | | ?# # """#?# #???????????????????????? | | ?# # """#?# #???????????????????????? | | ?# # #?# #???????????????????????? | | ?# # """### ##??????????????????????? | | ?# # ! """## #########??????????????? | | ?# # """## ?????????? | | ?# # + T ?????????? | | ?#################### ?????????? | | ????????????????????# #############??????????? | | ????????????????????## ##??????????????????????? | | ?????????????????????# #???????????????????????? | +----------------------------------------------------+ Best States ------------- Heat Dissipation 28 Energy Generation 10 Energy Capacity 125 Matter Stores 300 Matter Capacity 300 Sight Range 16 Terrain Scan Density 10 Evasion (%) 50 Item Schematics ----------------- None Robot Schematics ------------------ None Fabricated ------------ Nothing Alien Tech Used ----------------- None Achievements -------------- None Challenges ------------ None Game ------ Seed HypercooledStasisBox Manual? 1 Play Time 00:10:01 Cumulative 23.5 hours Start 2024.04.14 @ 02:08:51 End 2024.04.14 @ 02:17:41 Sessions 1 Manual Loads 0 Difficulty Rogue Special Mode None Game No. 68 Rogue 68 Adventurer 0 Explorer 0 Win Type - Total 0 Types 0/0/0/0/0/0/0/0/0 Lore% 19 Gallery% 28 Achievement% 22 Wizard Run 0 Options --------- Layout 1 ASCII 0 Keyboard 0 Movement Arrows Keybinds 0 Fullscreen 2 Font 24/Smallcaps Map View 50x35 Zoom Use 0% Tactical HUD 0 Map Filters NONE Filters NONE Steam 1 RUN: 264e5872-228e-4ae3-b9c7-4440e5a10d2b